bitfinex-derivatives/quotes_ETHF0:USTF0_20250621
["timestamp","ask_amount","ask_price","bid_price","bid_amount"]
[1750509944269,2.10157,2440.4,2440.3,0.81948]
[1750509949669,0.81944,2440.5,2440.4,0.81945]
[1750509950977,2.14054,2440.5,2440.4,0.81945]
[1750509957284,5.34834,2440.5,2440.4,0.81945]
[1750509958081,2.14054,2440.5,2440.4,0.81945]
[1750509958283,5.34834,2440.5,2440.4,0.81945]
[1750509961787,0.81945,2440.4,2440.3,0.06847599]
[1750509961977,3.85962915,2440.4,2440.3,0.06847599]
[1750509962382,4.99678229,2440.4,2440.3,0.06847599]
[1750509963185,3.85962915,2440.4,2440.3,0.06847599]
[1750509963386,4.9965904,2440.4,2440.3,0.06847599]
[1750509963584,3.85962915,2440.4,2440.3,0.06847599]
[1750509963987,28.77762915,2440.4,2440.3,0.06847599]
[1750509964495,0.81948,2440.3,2440.2,0.81951]
[1750509964786,0.81953,2440.2,2440.1,0.81952]
[1750509964983,4.02733,2440.2,2440.1,0.81952]
[1750509965287,5.43013,2440.2,2440.1,0.81952]
[1750509968888,3.2078,2440.2,2440.1,0.81952]
[1750509972192,4.02731,2440.2,2440.1,0.81952]
[1750509972992,3.2078,2440.2,2440.1,0.81952]
[1750509973192,4.02731,2440.2,2440.1,0.81952]
[1750509976899,3.2078,2440.2,2440.1,0.81952]
[1750509978384,4.02731,2440.2,2440.1,0.81952]
[1750509978584,3.2078,2440.2,2440.1,0.81952]
[1750509978790,4.02731,2440.2,2440.1,0.81952]
[1750509979698,4.02731,2440.2,2440.1,0.88799599]
[1750509981686,5.35021,2440.2,2440.1,0.06847599]
[1750509982093,6.99558915,2440.2,2440.1,0.06847599]
[1750509982999,5.35021,2440.2,2440.1,0.88802599]
[1750509983401,4.02731,2440.2,2440.1,0.88802599]
[1750509983607,28.91331,2440.2,2440.1,0.88802599]
[1750509985007,4.02722,2440.5,2440.1,3.76268514]
[1750509985205,28.1058,2440.5,2440.4,0.81945]
[1750509985399,3.2078,2440.5,2440.4,0.81945]
[1750509986002,1.64537915,2440.3,2440.1,0.06847599]
[1750509986303,28.3958,2440.2,2440.1,0.88800599]
[1750509986504,3.2078,2440.2,2440.1,0.88800599]
[1750509988608,0.81948,2440.3,2440.1,7.27800599]
[1750509988802,0.81948,2440.3,2440.2,0.6922]
[1750509994521,29.21427,2440.4,2440.3,0.81948]
[1750509994715,5.16534068,2440.4,2440.2,0.6922]
[1750509994904,3.2078,2440.4,2440.3,0.81948]
[1750509996115,0.81948,2440.3,2440.2,0.06847599]
[1750509996416,0.81962,2439.9,2439.8,0.6529]
[1750509996620,0.8197,2439.7,2439.6,0.6529]
[1750509997116,0.8197,2439.7,2439.6,7.86362]
[1750510000014,0.8197,2439.7,2439.6,1.47262]
[1750510000217,0.8197,2439.7,2439.6,7.86362]
[1750510000618,0.81968,2439.7,2439.6,7.86359]
[1750510001119,3.53247,2439.8,2439.7,0.81968]
[1750510002113,1.3814,2439.8,2439.7,0.81968]
[1750510002312,2.20105,2439.8,2439.7,0.81968]
[1750510002824,1.3814,2439.8,2439.7,0.81968]
[1750510003120,28.3598,2439.9,2439.8,0.81965]
[1750510003313,29.17942,2439.9,2439.8,0.81965]
[1750510003715,3.2078,2439.9,2439.8,0.81965]
[1750510005813,3.2078,2439.9,2439.8,7.21065]
[1750510010121,3.2078,2439.9,2439.8,7.27912599]
[1750510010322,3.2078,2439.9,2439.8,8.92450514]
[1750510013019,3.2078,2439.9,2439.8,13.92450514]
[1750510013219,2.04837,2440.7,2440.1,1.64537915]
[1750510013422,0.81948,2440.4,2440.3,0.81948]
[1750510013824,1.47583,2440.5,2440.3,0.81948]
[1750510014125,2.83253,2440.5,2440.4,0.81945]
[1750510015120,0.81945,2440.4,2440.3,0.81946]
[1750510015323,2.17615,2440.4,2440.3,0.81946]
[1750510017227,1.3567,2440.4,2440.3,0.81946]
[1750510019628,2.17615,2440.4,2440.3,0.81946]
[1750510021230,1.3567,2440.4,2440.3,0.81946]
[1750510025528,1.3567,2440.4,2440.3,0.88793599]
[1750510025733,2.17615,2440.4,2440.3,0.88793599]
[1750510027530,2.17615,2440.4,2440.3,0.06847599]
[1750510027733,2.17615,2440.4,2440.3,0.88795599]
[1750510036437,2.04871,2440.3,2439.8,3.2078]
[1750510036746,2.04871,2440.3,2439.8,4.02743]
[1750510036747,0.81962,2439.9,2439.8,4.02743]
[1750510037647,1.52712,2439.9,2439.8,4.02743]
[1750510038248,1.52712,2439.9,2439.8,3.2078]
[1750510038440,3.17249915,2439.9,2439.8,3.2078]
[1750510039647,0.81968,2439.7,2439.6,10.5485]
[1750510040241,0.81968,2439.7,2439.6,4.0275]
[1750510040842,2.17537,2439.8,2439.7,0.81968]
[1750510041043,0.81967,2439.8,2439.7,0.81968]
[1750510045052,0.81968,2439.7,2439.6,4.02749]
[1750510050949,0.81968,2439.7,2439.2,6.46738265]
[1750510050950,0.81984,2439.3,2439.2,0.81984]
[1750510051243,0.81984,2439.3,2439.1,1.52056]
[1750510051547,0.651,2439.2,2439.1,1.52056]
[1750510051949,1.47085,2439.2,2439.1,0.7007]
[1750510052154,1.47085,2439.2,2439.0,3.2078]
[1750510052155,0.81988,2439.1,2439.0,3.2078]
[1750510052339,2.14548,2439.1,2439.0,3.2078]
[1750510053646,0.81988,2439.1,2439.0,3.2078]
[1750510059765,0.81995,2438.9,2438.8,1.52067]
[1750510069177,2.70065,2439.2,2438.8,1.52067]
[1750510069178,0.81993,2439.0,2438.9,0.81991]
[1750510069373,0.81987,2439.2,2439.1,0.81988]
[1750510069565,0.81992,2439.1,2439.0,0.81991]
[1750510070578,0.81988,2439.2,2439.1,0.81986]
[1750510071276,0.8199,2439.1,2439.0,0.81989]
[1750510073780,0.81992,2439.0,2438.9,2.89184]
[1750510073966,0.81992,2439.0,2438.9,2.0719]
[1750510074778,0.81992,2439.0,2438.9,0.7068]
[1750510076883,0.81992,2439.0,2438.9,1.994]
[1750510077177,0.81992,2439.0,2438.9,9.24295]
[1750510077379,0.81992,2439.0,2438.9,8.423]
[1750510077982,0.81992,2439.0,2438.9,7.1358]
[1750510078783,0.81992,2439.0,2438.9,7.95575]
[1750510080287,0.81992,2439.0,2438.9,7.1358]
[1750510080479,0.81992,2439.0,2438.9,0.7068]
[1750510080686,0.81992,2439.0,2438.9,7.1358]
[1750510082187,0.81992,2439.0,2438.9,7.95575]
[1750510083785,0.81992,2439.0,2438.9,7.1358]
[1750510086085,0.81995,2438.9,2438.8,0.7007]
[1750510086283,0.81995,2438.9,2438.8,7.1297]
[1750510086482,0.81995,2438.9,2438.8,0.7007]
[1750510086682,0.81998,2438.8,2438.7,3.2078]
[1750510086985,0.81998,2438.8,2438.4,53.647]
[1750510086986,0.82009,2438.5,2438.4,53.647]
[1750510087179,0.82009,2438.5,2438.4,6.429]
[1750510087383,0.82012,2438.4,2438.3,10.3101]
[1750510088384,0.82012,2438.4,2438.3,11.13025]
[1750510088582,0.8201,2438.5,2438.4,0.82011]
[1750510089191,0.8201,2438.5,2438.3,12.77560915]
[1750510089488,0.82012,2438.4,2438.3,12.77560915]
[1750510089688,0.82012,2438.4,2438.3,11.95547915]
[1750510090790,0.82011,2438.5,2438.3,11.95547915]
[1750510090978,0.82012,2438.4,2438.3,11.95547915]
[1750510091178,0.82012,2438.4,2438.3,3.2078]
[1750510091383,0.82012,2438.4,2438.0,0.32162205]
[1750510091384,0.82022,2438.1,2438.0,3.2078]
[1750510092084,5.2866,2438.1,2437.6,10.3022]
[1750510092286,0.82033,2437.8,2437.7,0.82034]
[1750510092482,0.82033,2437.8,2437.6,11.12256]
[1750510092683,0.82033,2437.8,2437.7,0.82036]
[1750510093084,0.82036,2437.7,2437.6,4.69257]
[1750510093284,0.82036,2437.7,2437.6,3.2078]
[1750510093887,2.0489,2437.9,2437.6,3.2078]
[1750510094086,0.82033,2437.8,2437.7,0.82036]
[1750510094388,0.82036,2437.7,2437.6,3.2078]
[1750510094587,2.22886,2437.7,2437.6,3.2078]
[1750510095391,0.82036,2437.7,2437.6,3.2078]
[1750510097993,2.13794,2437.8,2437.6,3.2078]
[1750510098292,0.82036,2437.7,2437.6,4.02816]
[1750510098485,2.19756,2437.7,2437.6,4.02816]
[1750510098797,2.19756,2437.7,2437.6,3.2078]
[1750510099388,0.6404,2437.9,2437.8,0.82032]
[1750510099590,0.6404,2437.9,2437.6,3.2078]
[1750510099591,0.82032,2437.8,2437.7,0.6429]
[1750510099795,0.82032,2437.8,2437.7,1.46325]
[1750510100493,1.46069,2437.9,2437.8,0.82032]
[1750510100691,0.82032,2437.8,2437.7,1.46323]
[1750510102301,1.46071,2437.9,2437.8,0.82032]
[1750510103794,0.82032,2437.8,2437.7,1.46323]
[1750510105898,0.82032,2437.8,2437.7,0.6429]
[1750510106604,0.82035,2437.7,2437.6,3.27627599]
[1750510106795,2.19215,2437.7,2437.6,3.27627599]
[1750510107898,2.19215,2437.7,2437.6,4.09666599]
[1750510108693,0.82035,2437.7,2437.6,4.09666599]
[1750510108897,9.1404,2437.9,2437.8,0.82032]
[1750510109701,0.82034,2437.8,2437.7,0.82034]
[1750510111502,0.82034,2437.8,2437.7,1.47314]
[1750510112300,0.82034,2437.8,2437.7,0.6528]
[1750510112891,0.82034,2437.8,2437.7,1.47316]
[1750510113500,0.82034,2437.8,2437.7,0.6528]
[1750510114002,0.82034,2437.8,2437.7,1.47316]
[1750510114602,0.82034,2437.8,2437.7,0.6528]
[1750510114806,0.82036,2437.7,2437.6,3.2078]
[1750510117706,0.82039,2437.6,2437.5,4.69402]
[1750510118511,0.82039,2437.6,2437.5,3.8736]
[1750510119209,1.48079,2437.6,2437.5,3.8736]
[1750510120400,1.48079,2437.6,2437.5,0.6658]
[1750510121012,0.82049,2437.3,2437.2,11.12331]
[1750510121709,0.82048,2437.4,2437.3,0.82046]
[1750510121910,0.82048,2437.4,2437.3,1.49736]
[1750510123710,0.82048,2437.4,2437.3,0.6769]
[1750510123907,0.82049,2437.3,2437.2,3.2078]
[1750510124612,0.82049,2437.3,2437.2,4.02832]
[1750510125311,0.82049,2437.3,2437.2,3.2078]
[1750510125815,0.82052,2437.2,2437.1,0.7093]
[1750510126215,0.82052,2437.2,2437.1,1.52986]
[1750510126412,0.82052,2437.2,2437.1,0.7093]
[1750510126808,0.82052,2437.2,2437.1,1.52986]
[1750510127008,0.82052,2437.2,2437.1,0.7093]
[1750510127408,0.82059,2437.0,2436.9,11.1189]
[1750510127610,0.82059,2437.0,2436.9,3.8936]
[1750510129515,0.82059,2437.0,2436.9,0.6858]
[1750510130013,0.82057,2437.1,2437.0,0.82056]
[1750510130215,0.82059,2437.0,2436.9,1.5064]
[1750510130411,0.82059,2437.0,2436.9,0.6858]
[1750510131715,5.92285,2437.2,2436.6,9.94469187]
[1750510131911,0.82067,2436.8,2436.7,1.52966]
[1750510132111,1.49115,2436.9,2436.8,0.82066]
[1750510132719,0.82066,2436.8,2436.7,1.52968]
[1750510133508,0.82066,2436.8,2436.7,0.709]
[1750510133722,0.82066,2436.8,2436.7,1.52969]
[1750510134107,0.82066,2436.8,2436.7,0.709]
[1750510134312,1.49115,2436.9,2436.7,0.709]
[1750510134512,0.82066,2436.8,2436.7,1.52967]
[1750510134712,0.82066,2436.8,2436.7,0.709]
[1750510135121,0.82066,2436.8,2436.7,1.52969]
[1750510136522,0.82066,2436.8,2436.7,0.709]
[1750510138128,0.82066,2436.8,2436.7,1.52969]
[1750510138422,0.82066,2436.8,2436.7,0.709]
[1750510138814,0.82066,2436.8,2436.7,1.52969]
[1750510139015,0.82066,2436.8,2436.7,0.709]
[1750510139713,0.82069,2436.7,2436.6,3.2078]
[1750510139909,1.50329,2436.7,2436.6,4.02853]
[1750510140321,1.50329,2436.7,2436.6,3.2078]
[1750510140524,1.50329,2436.7,2436.6,4.02853]
[1750510141123,1.50329,2436.7,2436.6,3.2078]
[1750510141328,1.50329,2436.7,2436.6,4.02853]
[1750510141523,1.50329,2436.7,2436.6,3.2078]
[1750510142220,0.82079,2436.4,2436.3,3.2078]
[1750510142425,24.939,2436.7,2436.6,0.82073]
[1750510142818,26.58437915,2436.7,2436.3,3.9059]
[1750510143022,27.28057915,2436.7,2436.3,3.9059]
[1750510143214,0.82079,2436.5,2436.4,0.82078]
[1750510143526,0.82076,2436.5,2436.4,0.82078]
[1750510144417,0.82079,2436.4,2436.3,4.72671]
[1750510144622,0.82077,2436.5,2436.4,0.82078]
[1750510145421,0.82075,2436.6,2436.3,3.9059]
[1750510145627,0.82076,2436.5,2436.4,0.82077]
[1750510145829,0.82075,2436.6,2436.5,0.82076]
[1750510146424,0.82075,2436.6,2436.3,4.02861]
[1750510146425,0.82079,2436.4,2436.3,4.02861]
[1750510146819,0.82079,2436.4,2436.3,3.2078]
[1750510148129,3.58829,2436.4,2436.3,3.2078]
[1750510148830,25.6456,2436.4,2436.3,4.02863]
[1750510149127,26.46639,2436.4,2436.3,3.2078]
[1750510149322,0.7036,2436.4,2436.3,3.2078]
[1750510149524,0.7036,2436.4,2436.3,4.02863]
[1750510149923,2.87939,2436.4,2436.3,3.2078]
[1750510150326,0.82095,2436.0,2435.9,3.2078]
[1750510150530,4.11063,2436.4,2435.9,0.82094]
[1750510150531,4.02871,2436.1,2435.9,0.82094]
[1750510150733,0.82093,2436.0,2435.9,0.82094]
[1750510150923,1.46543,2436.0,2435.9,0.82094]
[1750510151725,0.6445,2436.0,2435.9,0.82094]
[1750510152228,0.82089,2436.1,2436.0,0.8209]
[1750510152530,24.945,2436.2,2436.1,0.82089]
[1750510153028,3.2078,2436.4,2436.3,0.82083]
[1750510154031,0.82076,2436.5,2436.4,0.82079]
[1750510154723,2.80405,2436.6,2436.5,0.82076]
[1750510155029,0.82076,2436.5,2436.4,0.82077]
[1750510157031,0.82073,2436.6,2436.5,0.82074]
[1750510157429,4.0285,2436.7,2436.6,0.82072]
[1750510157629,3.2078,2436.7,2436.6,0.82072]
[1750510157933,0.82063,2436.9,2436.8,0.82066]
[1750510158124,0.82066,2436.8,2436.7,0.82067]
[1750510158436,0.82063,2436.9,2436.8,0.82063]
[1750510158634,4.69151,2437.0,2436.9,0.82062]
[1750510159037,0.82065,2436.9,2436.8,0.82065]
[1750510159237,0.82066,2436.9,2436.8,0.82064]
[1750510159437,0.82066,2436.8,2436.7,1.49957]
[1750510159738,0.82064,2436.9,2436.8,0.82064]
[1750510160734,0.82063,2436.9,2436.8,0.82063]
[1750510161040,4.69151,2437.0,2436.9,0.82062]
[1750510161439,0.82057,2437.1,2436.7,0.6789]
[1750510161741,25.78657,2437.1,2437.0,0.82059]
[1750510162136,3.2078,2437.3,2437.0,1.64537915]
[1750510162342,3.2078,2437.3,2437.2,0.82052]
[1750510162535,4.02829,2437.3,2437.2,0.82052]
[1750510163637,0.82049,2437.3,2437.2,0.82052]
[1750510165234,0.82048,2437.4,2437.3,0.82049]
[1750510165441,0.8205,2437.3,2437.2,0.8205]
[1750510165841,0.82048,2437.4,2437.3,0.82048]
[1750510166042,0.8205,2437.3,2437.2,0.8205]
[1750510166242,0.82048,2437.4,2437.3,0.82048]
[1750510166434,0.8205,2437.3,2437.2,0.8205]
[1750510166629,3.8681,2437.6,2437.3,0.82047]
[1750510166835,0.82046,2437.4,2437.3,0.82047]
[1750510167236,0.82045,2437.5,2437.4,0.82046]
[1750510168138,4.68851,2437.6,2437.5,0.82042]
[1750510168538,4.68851,2437.6,2437.2,0.6769]
[1750510168745,0.82046,2437.4,2437.3,0.82046]
[1750510169549,0.82044,2437.5,2437.4,0.82044]
[1750510171351,0.82046,2437.4,2437.3,1.52237]
[1750510171741,0.82046,2437.4,2437.3,0.7019]
[1750510172048,0.82046,2437.4,2437.3,1.52239]
[1750510172346,0.82046,2437.4,2437.3,0.7019]
[1750510172547,0.82046,2437.4,2437.3,1.52239]
[1750510173350,0.82045,2437.5,2437.3,0.7019]
[1750510173843,3.8681,2437.6,2437.3,0.7019]
[1750510173844,0.82046,2437.4,2437.3,7.94136]
[1750510177648,0.82044,2437.5,2437.4,0.88891599]
[1750510178644,4.68852,2437.6,2437.5,0.82042]
[1750510178845,0.82042,2437.5,2437.4,0.88891599]
[1750510179152,3.2078,2437.6,2437.5,0.82042]
[1750510179744,4.02819,2437.6,2437.5,0.82042]
[1750510180845,3.2078,2437.6,2437.5,0.82042]
[1750510181041,4.02819,2437.6,2437.5,0.82042]
[1750510181446,3.2078,2437.6,2437.5,0.82042]
[1750510181753,4.02819,2437.6,2437.5,0.82042]
[1750510181948,4.70029,2437.6,2437.5,0.82042]
[1750510182842,3.8799,2437.6,2437.5,0.82042]
[1750510184649,4.70029,2437.6,2437.5,0.82042]
[1750510184852,3.8799,2437.6,2437.5,0.82042]
[1750510185860,3.2078,2437.6,2437.5,0.82042]
[1750510188860,0.82037,2437.7,2437.6,0.82039]
[1750510189860,0.82041,2437.6,2437.5,0.8204]
[1750510190758,0.82041,2437.6,2437.5,0.88887599]
[1750510190957,2.46578915,2437.6,2437.5,0.06847599]
[1750510191161,2.46578915,2437.6,2437.5,0.88889599]
[1750510191861,5.67358915,2437.6,2437.5,0.06847599]
[1750510192355,5.67358915,2437.6,2437.5,0.88889599]
[1750510192756,5.67358915,2437.6,2437.5,0.06847599]
[1750510195256,0.82056,2437.1,2437.0,8.11813571]
[1750510195459,0.82055,2437.2,2437.1,0.82054]
[1750510195660,0.82056,2437.1,2437.0,4.02837]
[1750510195863,1.50996,2437.1,2437.0,4.02837]
[1750510197163,0.6894,2437.1,2437.0,4.02837]
[1750510198366,1.50996,2437.1,2437.0,4.02837]
[1750510198665,1.50996,2437.1,2437.0,3.2078]
[1750510199363,4.71776,2437.1,2437.0,0.82059]
[1750510199565,0.82061,2437.0,2436.9,0.82061]
[1750510200360,1.3889,2437.0,2436.6,4.74806571]
[1750510200566,0.82068,2436.8,2436.7,0.82068]
[1750510202367,3.03427915,2437.0,2436.5,0.6894]
[1750510202569,0.82066,2436.8,2436.7,0.82067]
[1750510202869,2.16525,2436.9,2436.8,0.82066]
[1750510203162,4.71777,2437.1,2437.0,0.82059]
[1750510203568,4.71779,2437.1,2437.0,0.82059]
[1750510203767,0.8206,2437.0,2436.9,0.8206]
[1750510204463,0.82063,2436.9,2436.8,0.82063]
[1750510205573,0.82063,2436.9,2436.8,1.48393]
[1750510205966,0.82062,2437.0,2436.9,0.82061]
[1750510206173,6.04628,2437.1,2437.0,0.82059]
[1750510207362,0.82061,2437.0,2436.9,0.8206]
[1750510207564,0.82065,2436.9,2436.8,0.82064]
[1750510208376,2.14911,2437.0,2436.9,0.82062]
[1750510208570,4.71778,2437.1,2437.0,0.82059]
[1750510208972,6.09958,2437.1,2437.0,0.82059]
[1750510209174,0.8206,2437.0,2436.9,0.8206]
[1750510210765,6.09958,2437.1,2437.0,0.82059]
[1750510211473,3.2078,2437.1,2437.0,0.82059]
[1750510214067,3.2078,2437.1,2437.0,2.13939]
[1750510214466,4.68376,2437.4,2437.3,0.82049]
[1750510214974,3.8633,2437.4,2437.3,0.82049]
[1750510215892,3.2078,2437.4,2437.3,0.82049]
[1750510216469,3.8644,2437.7,2437.6,0.82039]
[1750510217881,3.2078,2437.7,2437.6,0.82039]
[1750510218775,3.2078,2437.7,2437.6,1.49099]
[1750510219074,3.2078,2437.7,2437.6,2.17259]
[1750510222178,4.02815,2437.7,2437.6,2.17259]
[1750510225278,4.02815,2437.7,2437.6,1.3522]
[1750510225482,4.02815,2437.7,2437.6,0.6706]
[1750510225876,4.02815,2437.7,2437.6,1.49099]
[1750510235384,3.2078,2437.7,2437.6,1.49099]
[1750510235684,4.02815,2437.7,2437.6,1.55946599]
[1750510235984,3.2078,2437.7,2437.6,1.55946599]
[1750510236686,4.02815,2437.7,2437.6,1.55946599]
[1750510238083,4.02815,2437.7,2437.6,0.73907599]
[1750510238276,4.02815,2437.7,2437.6,1.55946599]
[1750510240589,3.2078,2437.7,2437.6,1.55946599]
[1750510243387,4.02815,2437.7,2437.6,1.55946599]
[1750510244389,3.2078,2437.7,2437.6,1.55946599]
[1750510245384,4.02815,2437.7,2437.6,1.55946599]
[1750510245788,5.67352915,2437.7,2437.6,0.06847599]
[1750510246289,7.05842915,2437.7,2437.6,0.06847599]
[1750510246881,7.05842915,2437.7,2437.6,0.88886599]
[1750510247290,7.05842915,2437.7,2437.6,0.06847599]
[1750510247689,7.05842915,2437.7,2437.6,0.88886599]
[1750510251003,7.05842915,2437.7,2437.6,0.06847599]
[1750510251496,7.05842915,2437.7,2437.6,0.88886599]
[1750510253411,7.05842915,2437.7,2437.6,0.06847599]
[1750510255008,13.20816007,2437.7,2437.6,0.06847599]
[1750510255304,0.82055,2437.2,2437.1,0.82055]
[1750510256112,0.82057,2437.1,2437.0,0.82057]
[1750510256612,2.78295,2437.2,2437.1,0.82056]
[1750510257507,0.6796,2437.2,2437.1,0.82056]
[1750510257811,1.50012,2437.2,2437.1,0.82056]
[1750510259311,0.82057,2437.1,2437.0,0.82057]
[1750510261417,0.82059,2437.0,2436.9,4.68969]
[1750510261819,0.82058,2437.1,2437.0,0.82057]
[1750510262417,0.82059,2437.0,2436.9,1.4819]
[1750510264122,0.82058,2437.1,2437.0,0.82057]
[1750510264523,1.50014,2437.2,2437.1,0.82056]
[1750510265615,0.82056,2437.1,2437.0,0.88904599]
[1750510266114,0.82056,2437.1,2437.0,0.06847599]
[1750510267223,2.22736,2437.1,2437.0,0.06847599]
[1750510267918,5.43516,2437.1,2437.0,0.06847599]
[1750510269518,5.43516,2437.1,2437.0,0.88906599]
[1750510270827,3.2078,2437.1,2437.0,0.88906599]
[1750510271030,4.02836,2437.1,2437.0,0.88906599]
[1750510273529,5.67373915,2437.1,2437.0,0.88906599]
[1750510273726,7.05353915,2437.1,2437.0,0.88906599]
[1750510275026,7.05353915,2437.1,2437.0,0.06847599]
[1750510276630,0.82069,2436.7,2436.6,0.8207]
[1750510276828,0.82072,2436.6,2436.5,10.43653]
[1750510277329,0.82071,2436.7,2436.6,0.8207]
[1750510277626,3.73877915,2436.9,2436.7,0.82068]
[1750510277627,0.82068,2436.8,2436.7,0.82068]
[1750510280732,2.91405,2436.9,2436.8,0.82066]
[1750510280925,1.50515,2436.9,2436.8,0.82066]
[1750510281931,0.82067,2436.8,2436.7,0.82067]
[1750510283626,0.82067,2436.8,2436.5,3.2078]
[1750510283834,0.82069,2436.7,2436.6,0.8207]
[1750510284529,0.82072,2436.6,2436.5,3.2078]
[1750510286131,0.82072,2436.6,2436.4,0.6504]
[1750510286132,0.82076,2436.5,2436.4,1.47117]
[1750510286535,0.82076,2436.5,2436.4,0.6504]
[1750510287147,0.686,2436.6,2436.1,10.28724486]
[1750510287148,0.82086,2436.3,2436.1,8.64186571]
[1750510287439,0.82086,2436.3,2436.2,0.6715]
[1750510287933,0.82086,2436.3,2436.1,3.2078]
[1750510287934,0.82089,2436.1,2436.0,0.6715]
[1750510288138,0.82093,2436.0,2435.9,6.10157392]
[1750510288932,0.82096,2435.9,2435.8,1.81462602]
[1750510289539,3.2078,2436.9,2436.3,2.05207]
[1750510289734,0.82068,2436.8,2436.5,0.82073]
[1750510289935,0.82069,2436.7,2436.5,0.82073]
[1750510290242,0.82072,2436.7,2436.5,0.82075]
[1750510290739,0.82072,2436.7,2436.5,0.82074]
[1750510290936,0.82076,2436.6,2436.4,2.12419]
[1750510291131,0.82076,2436.6,2436.5,0.82076]
[1750510291333,3.2078,2436.6,2436.5,0.82076]
[1750510291941,4.02852,2436.6,2436.5,0.82076]
[1750510292143,3.2078,2436.6,2436.5,0.82076]
[1750510292735,4.02852,2436.6,2436.5,0.82076]
[1750510294347,3.2078,2436.6,2436.5,0.82076]
[1750510294651,4.02852,2436.6,2436.5,0.82076]
[1750510294846,3.2078,2436.6,2436.5,0.82076]
[1750510295143,4.85317915,2436.6,2436.4,0.6644]
[1750510295345,4.85317915,2436.6,2436.4,0.73287599]
[1750510295346,0.6531,2436.5,2436.4,0.73287599]
[1750510295641,0.6531,2436.5,2436.4,1.55365599]
[1750510295842,4.85317915,2436.6,2436.4,1.55365599]
[1750510296042,0.82076,2436.5,2436.4,1.55365599]
[1750510296242,0.82076,2436.5,2436.4,1.55364599]
[1750510297248,4.85317915,2436.6,2436.5,0.82076]
[1750510297249,5.67392915,2436.6,2436.5,0.82076]
[1750510297750,0.82076,2436.5,2436.4,1.55364599]
[1750510298552,0.82076,2436.5,2436.4,0.73287599]
[1750510299751,0.82076,2436.5,2436.4,1.55366599]
[1750510299950,0.82076,2436.5,2436.4,0.73287599]
[1750510300538,0.82076,2436.5,2436.4,1.55366599]
[1750510300742,4.02855,2436.6,2436.5,0.82076]
[1750510301252,0.82076,2436.5,2436.4,1.55364599]
[1750510301951,4.02855,2436.6,2436.5,0.82076]
[1750510303957,0.82076,2436.5,2436.4,1.55364599]
[1750510306562,4.02855,2436.6,2436.5,0.82076]
[1750510308452,3.2078,2436.6,2436.5,0.82076]
[1750510308643,3.2078,2436.9,2436.8,0.82066]
[1750510309350,3.2078,2437.2,2437.1,0.82056]
[1750510309668,3.2078,2437.2,2437.1,8.87193915]
[1750510309856,3.2078,2437.6,2437.5,0.82042]
[1750510313054,4.02819,2437.6,2437.5,0.82042]
[1750510317954,0.82039,2437.6,2437.5,0.82042]
[1750510321462,4.02818,2437.7,2437.6,0.82039]
[1750510322463,3.2078,2437.7,2437.6,0.82039]
[1750510323562,4.02815,2437.7,2437.6,0.82039]
[1750510323757,0.8204,2437.6,2437.5,0.8204]
[1750510323953,0.82051,2437.3,2437.2,0.8205]
[1750510324155,4.85317915,2437.3,2437.0,7.111]
[1750510324460,1.48952,2437.2,2437.1,0.82056]
[1750510325166,0.669,2437.2,2437.1,0.82056]
[1750510326957,2.0593,2437.2,2437.1,0.82056]
[1750510327660,2.87982,2437.2,2437.1,0.82056]
[1750510328553,0.82059,2437.1,2437.0,0.82058]
[1750510328757,0.82064,2436.9,2436.8,0.82064]
[1750510329157,0.82061,2437.0,2436.9,0.82061]
[1750510329357,2.21091,2437.0,2436.9,0.82061]
[1750510330568,1.3903,2437.0,2436.9,0.82061]
[1750510331264,2.31437915,2437.2,2436.6,3.2078]
[1750510331562,0.82062,2437.0,2436.9,0.82062]
[1750510332969,1.3797,2437.1,2436.6,5.2596]
[1750510333269,0.82061,2437.0,2436.9,0.8206]
[1750510334167,1.3797,2437.1,2437.0,0.82059]
[1750510334360,0.82061,2437.0,2436.9,0.8206]
[1750510334760,1.3797,2437.1,2436.6,3.2078]
[1750510335070,0.82067,2436.8,2436.7,0.82066]
[1750510335669,1.47097,2436.8,2436.7,0.82066]
[1750510335862,2.78687,2436.8,2436.7,0.82066]
[1750510336461,0.82075,2436.6,2436.5,0.82074]
[1750510337675,0.82078,2436.5,2436.4,0.82077]
[1750510337873,0.82075,2436.6,2436.5,0.82074]
[1750510338375,0.82078,2436.5,2436.4,0.82077]
[1750510338577,0.82074,2436.6,2436.5,0.82073]
[1750510338768,1.3159,2436.7,2436.3,3.2078]
[1750510338973,4.5237,2436.7,2436.2,7.0865]
[1750510339176,0.82078,2436.5,2436.3,0.8208]
[1750510339686,0.639,2436.4,2436.3,0.8208]
[1750510339882,3.8468,2436.4,2436.2,0.6835]
[1750510340184,4.66761,2436.4,2436.3,0.82083]
[1750510340489,3.8468,2436.4,2436.2,0.6835]
[1750510340682,4.66762,2436.4,2436.3,0.82083]
[1750510340883,3.2078,2436.7,2436.3,1.64537915]
[1750510341082,3.2078,2436.7,2436.2,7.0875]
[1750510341083,0.82075,2436.6,2436.5,0.82074]
[1750510341278,0.82083,2436.3,2436.2,0.6835]
[1750510341485,0.82083,2436.3,2436.2,1.50436]
[1750510342586,0.82089,2436.1,2436.0,10.44985121]
[1750510342790,4.02869,2436.1,2436.0,10.44385121]
[1750510343487,4.02869,2436.1,2436.0,11.26478121]
[1750510343785,4.02869,2436.1,2436.0,10.44385121]
[1750510344298,4.02869,2436.1,2436.0,9.80265121]
[1750510344993,5.67406915,2436.1,2436.0,9.80265121]
[1750510347298,5.67406915,2436.1,2436.0,9.50441174]
[1750510347299,10.67406915,2436.1,2436.0,9.50441174]